fUSD/lending_fUSD_20240727
["ID","MTS","AMOUNT","RATE_DAILY","PERIOD"]
[333301592,1722045052205,-351.76,0.00010999,2]
[333301593,1722045052215,-253.13,0.00010999,2]
[333301594,1722045052224,-268.32,0.00010999,2]
[333301595,1722045052233,-335.06,0.00010999,2]
[333301596,1722045052243,-263.85,0.00010999,2]
[333301597,1722045052252,-500.0,0.00010999,2]
[333301598,1722045052262,-188.86,0.00010999,2]
[333301599,1722045052271,-500.0,0.00010999,2]
[333301600,1722045052281,-500.0,0.00010999,2]
[333301601,1722045052291,-380.06,0.00010999,2]
[333301602,1722045052301,-500.0,0.00010999,2]
[333301603,1722045052310,-500.0,0.00010999,2]
[333301604,1722045052320,-371.53,0.00010999,2]
[333301605,1722045052330,-366.8,0.00010999,2]
[333301606,1722045052341,-600.7,0.00010999,2]
[333301607,1722045052351,-500.0,0.00010999,2]
[333301608,1722045052360,-500.0,0.00010999,2]
[333301609,1722045052369,-500.0,0.00010999,2]
[333301610,1722045052378,-500.0,0.00010999,2]
[333301611,1722045052387,-362.82,0.00010999,2]
[333301612,1722045052396,-298.11759169,0.00010999,2]
[333301613,1722045052406,-500.0,0.00010999,2]
[333301614,1722045052417,-413.02528226,0.00010999,2]
[333301615,1722045052429,-500.0,0.00010999,2]
[333301616,1722045052440,-500.0,0.00010999,2]
[333301617,1722045052452,-500.0,0.00010999,2]
[333301618,1722045052463,-500.0,0.00010999,2]
[333301619,1722045052474,-500.0,0.00010999,2]
[333301620,1722045052485,-500.0,0.00010999,2]
[333301621,1722045052495,-500.0,0.00010999,2]
[333301622,1722045052504,-500.0,0.00010999,2]
[333301623,1722045052513,-500.0,0.00010999,2]
[333301624,1722045052523,-500.0,0.00010999,2]
[333301625,1722045052532,-500.0,0.00010999,2]
[333301626,1722045052541,-500.0,0.00010999,2]
[333301627,1722045052550,-277.03,0.00010999,2]
[333301628,1722045052559,-500.0,0.00010999,2]
[333301629,1722045052569,-294.96,0.00010999,2]
[333301630,1722045052578,-500.0,0.00010999,2]
[333301631,1722045052588,-500.0,0.00010999,2]
[333301632,1722045052597,-500.0,0.00010999,2]
[333301633,1722045052606,-500.0,0.00010999,2]
[333301634,1722045052615,-500.0,0.00010999,2]
[333301635,1722045052624,-500.0,0.00010999,2]
[333301636,1722045052633,-500.0,0.00010999,2]
[333301637,1722045052643,-500.0,0.00010999,2]
[333301638,1722045052653,-500.0,0.00010999,2]
[333301639,1722045052662,-500.0,0.00010999,2]
[333301640,1722045052671,-500.0,0.00010999,2]
[333301641,1722045052680,-500.0,0.00010999,2]
[333301642,1722045052688,-500.0,0.00010999,2]
[333301643,1722045052698,-500.0,0.00010999,2]
[333301644,1722045052707,-500.0,0.00010999,2]
[333301645,1722045052716,-500.0,0.00010999,2]
[333301646,1722045052725,-500.0,0.00010999,2]
[333301647,1722045052735,-500.0,0.00010999,2]
[333301648,1722045052745,-500.0,0.00010999,2]
[333301649,1722045052754,-500.0,0.00010999,2]
[333301650,1722045052763,-500.0,0.00010999,2]
[333301651,1722045052772,-625.91,0.00010999,2]
[333301652,1722045052781,-589.11,0.00010999,2]
[333301653,1722045052790,-406.88,0.00010999,2]
[333301654,1722045052800,-500.0,0.00010999,2]
[333301655,1722045052809,-500.0,0.00010999,2]
[333301656,1722045052819,-500.0,0.00010999,2]
[333301657,1722045052828,-500.0,0.00010999,2]
[333301658,1722045052838,-500.0,0.00010999,2]
[333301659,1722045052849,-500.0,0.00010999,2]
[333301660,1722045052858,-500.0,0.00010999,2]
[333301661,1722045052867,-500.0,0.00010999,2]
[333301662,1722045052876,-500.0,0.00010999,2]
[333301663,1722045052885,-633.16,0.00010999,2]
[333301664,1722045052896,-500.0,0.00010999,2]
[333301665,1722045052905,-500.0,0.00010999,2]
[333301666,1722045052914,-500.0,0.00010999,2]
[333301667,1722045052923,-500.0,0.00010999,2]
[333301668,1722045052933,-538.40066847,0.00010999,2]
[333301669,1722045052942,-500.0,0.00010999,2]
[333301670,1722045052951,-500.0,0.00010999,2]
[333301671,1722045052960,-500.0,0.00010999,2]
[333301672,1722045052969,-500.0,0.00010999,2]
[333301673,1722045052978,-500.0,0.00010999,2]
[333301674,1722045052987,-403.56,0.00010999,2]
[333301675,1722045052996,-500.0,0.00010999,2]
[333301676,1722045053005,-500.0,0.00010999,2]
[333301677,1722045053015,-500.0,0.00010999,2]
[333301678,1722045053024,-500.0,0.00010999,2]
[333301679,1722045053033,-574.65,0.00010999,2]
[333301680,1722045053043,-500.0,0.00010999,2]
[333301681,1722045053053,-500.0,0.00010999,2]
[333301682,1722045053062,-500.0,0.00010999,2]
[333301683,1722045053071,-338.97,0.00010999,2]
[333301684,1722045053081,-500.0,0.00010999,2]
[333301685,1722045053091,-500.0,0.00010999,2]
[333301686,1722045053100,-500.0,0.00010999,2]
[333301687,1722045053109,-500.0,0.00010999,2]
[333301688,1722045053119,-500.0,0.00010999,2]
[333301689,1722045053128,-500.0,0.00010999,2]
[333301690,1722045053137,-500.0,0.00010999,2]
[333301691,1722045053147,-500.0,0.00010999,2]
[333301692,1722045053156,-500.0,0.00010999,2]
[333301693,1722045053165,-272.57332482,0.00010999,2]
[333301694,1722045053174,-500.0,0.00010999,2]
[333301695,1722045053183,-500.0,0.00010999,2]
[333301696,1722045053193,-500.0,0.00010999,2]
[333301697,1722045053202,-500.0,0.00010999,2]
[333301698,1722045053211,-384.92,0.00010999,2]
[333301699,1722045053220,-500.0,0.00010999,2]
[333301700,1722045053230,-500.0,0.00010999,2]
[333301701,1722045053240,-500.0,0.00010999,2]
[333301702,1722045053250,-370.73,0.00010999,2]
[333301703,1722045053259,-359.62,0.00010999,2]
[333301704,1722045053268,-500.0,0.00010999,2]
[333301705,1722045053278,-500.0,0.00010999,2]
[333301706,1722045053287,-500.0,0.00010999,2]
[333301707,1722045053296,-360.51,0.00010999,2]
[333301708,1722045053305,-500.0,0.00010999,2]
[333301709,1722045053315,-500.0,0.00010999,2]
[333301710,1722045053325,-500.0,0.00010999,2]
[333301711,1722045053334,-500.0,0.00010999,2]
[333301712,1722045053343,-500.0,0.00010999,2]
[333301713,1722045053353,-500.0,0.00010999,2]
[333301714,1722045053362,-500.0,0.00010999,2]
[333301715,1722045053371,-500.0,0.00010999,2]
[333301716,1722045053380,-500.0,0.00010999,2]
[333301717,1722045053389,-500.0,0.00010999,2]
[333301718,1722045053398,-500.0,0.00010999,2]
[333301719,1722045053408,-500.0,0.00010999,2]
[333301720,1722045053417,-500.0,0.00010999,2]
[333301721,1722045053427,-500.0,0.00010999,2]
[333301722,1722045053437,-500.0,0.00010999,2]
[333301723,1722045053446,-625.12147525,0.00010999,2]
[333301724,1722045053455,-500.0,0.00010999,2]
[333301725,1722045053464,-500.0,0.00010999,2]
[333301726,1722045053473,-287.3,0.00010999,2]
[333301727,1722045053482,-163.58,0.00010999,2]
[333301728,1722045053491,-500.0,0.00010999,2]
[333301729,1722045053500,-500.0,0.00010999,2]
[333301730,1722045053509,-500.0,0.00010999,2]
[333301731,1722045053518,-258.88,0.00010999,2]
[333301732,1722045053527,-152.88,0.00010999,2]
[333301733,1722045053536,-297.67,0.00010999,2]
[333301734,1722045053545,-198.66,0.00010999,2]
[333301735,1722045053554,-500.0,0.00010999,2]
[333301736,1722045053563,-351.76,0.00010999,2]
[333301737,1722045053572,-500.0,0.00010999,2]
[333301738,1722045053581,-500.0,0.00010999,2]
[333301739,1722045053590,-253.13,0.00010999,2]
[333301740,1722045053600,-268.32,0.00010999,2]
[333301741,1722045053608,-335.06,0.00010999,2]
[333301742,1722045053617,-500.0,0.00010999,2]
[333301743,1722045053627,-188.86,0.00010999,2]
[333301744,1722045053636,-500.0,0.00010999,2]
[333301745,1722045053645,-500.0,0.00010999,2]
[333301746,1722045053654,-502.12168581,0.00010999,2]
[333301747,1722045053663,-500.0,0.00010999,2]
[333301748,1722045053672,-500.0,0.00010999,2]
[333301749,1722045053681,-500.0,0.00010999,2]
[333301750,1722045053691,-500.0,0.00010999,2]
[333301751,1722045053699,-281.75,0.00010999,2]
[333301752,1722045053708,-583.85,0.00010999,2]
[333301753,1722045053717,-260.56,0.00010999,2]
[333301754,1722045053726,-500.0,0.00010999,2]
[333301755,1722045053735,-355.3,0.00010999,2]
[333301756,1722045053744,-500.0,0.00010999,2]
[333301757,1722045053754,-411.23103153,0.00010999,2]
[333301758,1722045053763,-463.95265571,0.00010999,2]
[333301759,1722045053772,-422.30486579,0.00010999,2]
[333301760,1722045053781,-500.0,0.00010999,2]
[333301761,1722045053791,-162.98303368,0.00010999,2]
[333301762,1722045053800,-267.15443536,0.00010999,2]
[333301763,1722045053810,-507.78514724,0.00010999,2]
[333301764,1722045053819,-156.85852448,0.00010999,2]
[333301765,1722045053829,-503.2901931,0.00010999,2]
[333301766,1722045053842,-500.0,0.00010999,2]
[333301767,1722045053851,-499.6836,0.00010999,2]
[333301768,1722045053860,-506.41514837,0.00010999,2]
[333301769,1722045053870,-500.95267744,0.00010999,2]
[333301770,1722045053879,-500.0,0.00010999,2]
[333301771,1722045053889,-599.6071,0.00010999,2]
[333301772,1722045053900,-617.54193568,0.00010999,2]
[333301773,1722045053910,-256.22877166,0.00010999,2]
[333301774,1722045053923,-308.33922933,0.00010999,2]
[333301775,1722045053935,-530.88800821,0.00010999,2]
[333301776,1722045053946,-500.0,0.00010999,2]
[333301777,1722045053955,-514.15578651,0.00010999,2]
[333301778,1722045053964,-306.47,0.00010999,2]
[333301779,1722045053974,-500.0,0.00010999,2]
[333301780,1722045053984,-500.0,0.00010999,2]
[333301781,1722045053994,-500.0,0.00010999,2]
[333301782,1722045054003,-512.93925164,0.00010999,2]
[333301783,1722045054012,-500.0,0.00010999,2]
[333301784,1722045054021,-532.66274131,0.00010999,2]
[333301785,1722045054030,-300.43802545,0.00010999,2]
[333301786,1722045054039,-160.4805315,0.00010999,2]
[333301787,1722045054048,-500.0,0.00010999,2]
[333301788,1722045054058,-539.25539785,0.00010999,2]
[333301789,1722045054067,-500.0,0.00010999,2]
[333301790,1722045054076,-522.86083322,0.00010999,2]
[333301791,1722045054085,-500.0,0.00010999,2]
[333301792,1722045054094,-207.27856225,0.00010999,2]
[333301793,1722045054103,-516.44232432,0.00010999,2]
[333301794,1722045054112,-500.0,0.00010999,2]
[333301795,1722045054121,-527.39491198,0.00010999,2]
[333301796,1722045054131,-151.0,0.00010999,2]
[333301797,1722045054140,-176.175114,0.00010999,2]
[333301798,1722045054149,-500.0,0.00010999,2]
[333301799,1722045054159,-500.0,0.00010999,2]
[333301800,1722045054168,-500.0,0.00010999,2]
[333301801,1722045054177,-500.0,0.00010999,2]
[333301802,1722045054187,-500.0,0.00010999,2]
[333301803,1722045054196,-500.0,0.00010999,2]
[333301804,1722045054205,-521.09062945,0.00010999,2]
[333301805,1722045054215,-502.34979481,0.00010999,2]
[333301806,1722045054224,-500.0,0.00010999,2]
[333301807,1722045054233,-500.0,0.00010999,2]
[333301808,1722045054242,-500.0,0.00010999,2]
[333301809,1722045054251,-633.36748539,0.00010999,2]
[333301810,1722045054260,-500.0,0.00010999,2]
[333301811,1722045054269,-284.01686745,0.00010999,2]
[333301812,1722045054279,-245.11980405,0.00010999,2]
[333301813,1722045054288,-478.1847642,0.00010999,2]
[333301814,1722045054297,-500.0,0.00010999,2]
[333301815,1722045054306,-603.50793354,0.00010999,2]
[333301816,1722045054315,-500.0,0.00010999,2]
[333301817,1722045054325,-500.0,0.00010999,2]
[333301818,1722045054334,-500.0,0.00010999,2]
[333301819,1722045054343,-500.0,0.00010999,2]
[333301820,1722045054352,-500.0,0.00010999,2]
[333301821,1722045054362,-622.21967237,0.00010999,2]
[333301822,1722045054371,-558.65152373,0.00010999,2]
[333301823,1722045054379,-500.0,0.00010999,2]
[333301824,1722045054389,-500.0,0.00010999,2]
[333301825,1722045054398,-500.0,0.00010999,2]
[333301826,1722045054407,-641.4556777,0.00010999,2]
[333301827,1722045054416,-422.97080891,0.00010999,2]
[333301828,1722045054425,-500.0,0.00010999,2]
[333301829,1722045054434,-529.61777248,0.00010999,2]
[333301830,1722045054443,-500.0,0.00010999,2]
[333301831,1722045054452,-500.0,0.00010999,2]
[333301832,1722045054462,-535.58321116,0.00010999,2]
[333301833,1722045054471,-579.57776877,0.00010999,2]
[333301834,1722045054482,-500.0,0.00010999,2]
[333301835,1722045054492,-531.16564009,0.00010999,2]
[333301836,1722045054501,-500.0,0.00010999,2]
[333301837,1722045054510,-562.77431419,0.00010999,2]
[333301838,1722045054519,-167.95923129,0.00010999,2]
[333301839,1722045054528,-500.0,0.00010999,2]
[333301840,1722045054537,-500.0,0.00010999,2]
[333301841,1722045054547,-500.0,0.00010999,2]
[333301842,1722045054555,-500.0,0.00010999,2]
[333301843,1722045054564,-500.0,0.00010999,2]
[333301844,1722045054574,-500.0,0.00010999,2]
[333301845,1722045054583,-500.0,0.00010999,2]
[333301846,1722045054592,-575.90677379,0.00010999,2]
[333301847,1722045054601,-500.0,0.00010999,2]
[333301848,1722045054610,-500.0,0.00010999,2]
[333301849,1722045054619,-500.0,0.00010999,2]
[333301850,1722045054627,-500.0,0.00010999,2]
[333301851,1722045054637,-500.0,0.00010999,2]
[333301852,1722045054646,-190.99772742,0.00010999,2]
[333301853,1722045054655,-500.0,0.00010999,2]
[333301854,1722045054664,-265.71869849,0.00010999,2]
[333301855,1722045054673,-500.0,0.00010999,2]
[333301856,1722045054682,-500.0,0.00010999,2]
[333301857,1722045054691,-462.34972576,0.00010999,2]
[333301858,1722045054700,-500.0,0.00010999,2]
[333301859,1722045054709,-548.87027676,0.00010999,2]
[333301860,1722045054872,-632.47907591,0.00010999,2]
[333301861,1722045054883,-500.0,0.00010999,2]
[333301862,1722045054893,-500.0,0.00010999,2]
[333301863,1722045054902,-500.0,0.00010999,2]
[333301864,1722045054912,-241.99421623,0.00010999,2]
[333301865,1722045054921,-500.0,0.00010999,2]
[333301866,1722045054932,-615.97503269,0.00010999,2]
[333301867,1722045054942,-500.0,0.00010999,2]
[333301868,1722045054951,-500.0,0.00010999,2]
[333301869,1722045054960,-500.0,0.00010999,2]
[333301870,1722045054970,-500.0,0.00010999,2]
[333301871,1722045054979,-500.0,0.00010999,2]
[333301872,1722045054990,-500.0,0.00010999,2]
[333301873,1722045054999,-618.66966718,0.00010999,2]
[333301874,1722045055008,-603.29621976,0.00010999,2]
[333301875,1722045055018,-404.75071375,0.00010999,2]
[333301876,1722045055208,-333.07225194,0.00010898,2]
[333301877,1722045055218,-95.24928625,0.00010999,2]
[333301878,1722045055228,-387.75346181,0.00010999,2]
[333301879,1722045055245,-112.24653819,0.00010999,2]
[333301880,1722045055255,-500.0,0.00010999,2]
[333301881,1722045055264,-560.4252691,0.00010999,2]
[333301882,1722045055274,-500.0,0.00010999,2]
[333301883,1722045055284,-500.0,0.00010999,2]
[333301884,1722045055293,-500.0,0.00010999,2]
[333301885,1722045055302,-536.34742079,0.00010999,2]
[333301886,1722045055312,-500.0,0.00010999,2]
[333301887,1722045055322,-635.11574754,0.00010999,2]
[333301888,1722045055332,-500.0,0.00010999,2]
[333301889,1722045055342,-644.55839793,0.00010999,2]
[333301890,1722045055351,-500.0,0.00010999,2]
[333301891,1722045055360,-500.0,0.00010999,2]
[333301892,1722045055370,-500.0,0.00010999,2]
[333301893,1722045055380,-506.2462514,0.00010999,2]
[333301894,1722045055389,-620.66290477,0.00010999,2]
[333301895,1722045055399,-246.52664076,0.00010999,2]
[333301896,1722045055408,-500.0,0.00010999,2]
[333301897,1722045055417,-500.0,0.00010999,2]
[333301898,1722045055427,-500.0,0.00010999,2]
[333301899,1722045055436,-500.0,0.00010999,2]
[333301900,1722045055445,-500.0,0.00010999,2]
[333301901,1722045055454,-500.0,0.00010999,2]
[333301902,1722045055464,-500.0,0.00010999,2]
[333301903,1722045055473,-500.0,0.00010999,2]
[333301904,1722045055484,-500.0,0.00010999,2]
[333301905,1722045055494,-500.0,0.00010999,2]
[333301906,1722045055503,-500.0,0.00010999,2]
[333301907,1722045055513,-74.76936015,0.00010999,2]
[333301908,1722045055526,-425.23063985,0.00010999,2]
[333301909,1722045055535,-500.0,0.00010999,2]
[333301910,1722045055544,-500.0,0.00010999,2]
[333301911,1722045055553,-500.0,0.00010999,2]
[333301912,1722045055563,-517.09751099,0.00010999,2]
[333301913,1722045055572,-500.0,0.00010999,2]
[333301914,1722045055581,-500.0,0.00010999,2]
[333301915,1722045055591,-209.8675,0.00010999,2]
[333301916,1722045055601,-500.0,0.00010999,2]
[333301917,1722045055611,-500.0,0.00010999,2]
[333301918,1722045055620,-500.0,0.00010999,2]
[333301919,1722045055629,-500.0,0.00010999,2]
[333301920,1722045055638,-557.37729852,0.00010999,2]
[333301921,1722045055648,-500.0,0.00010999,2]
[333301922,1722045055657,-610.81486703,0.00010999,2]
[333301923,1722045055666,-500.0,0.00010999,2]
[333301924,1722045055675,-101.021543,0.00010999,2]
[333301925,1722045055687,-469.16833812,0.00010999,2]
[333301926,1722045055696,-376.7902924,0.00010999,2]
[333301927,1722045055705,-500.0,0.00010999,2]
[333301928,1722045055714,-547.61803118,0.00010999,2]
[333301929,1722045055723,-500.0,0.00010999,2]
[333301930,1722045055734,-500.0,0.00010999,2]
[333301931,1722045055744,-500.0,0.00010999,2]
[333301932,1722045055753,-546.90951566,0.00010999,2]
[333301933,1722045055762,-500.0,0.00010999,2]
[333301934,1722045055771,-526.64710758,0.00010999,2]
[333301935,1722045055780,-500.0,0.00010999,2]
[333301936,1722045055790,-500.0,0.00010999,2]
[333301937,1722045055799,-535.66917729,0.00010999,2]
[333301938,1722045055809,-500.0,0.00010999,2]
[333301939,1722045055819,-610.3315141,0.00010999,2]
[333301940,1722045055829,-151.0,0.00010999,2]
[333301941,1722045055840,-151.0,0.00010999,2]
[333301942,1722045055850,-500.0,0.00010999,2]
[333301943,1722045055859,-540.97586839,0.00010999,2]
[333301944,1722045055868,-500.0,0.00010999,2]
[333301945,1722045055878,-500.0,0.00010999,2]
[333301946,1722045055888,-516.90003198,0.00010999,2]
[333301947,1722045055898,-500.0,0.00010999,2]
[333301948,1722045055907,-500.0,0.00010999,2]
[333301949,1722045055917,-561.8382683,0.00010999,2]
[333301950,1722045055926,-500.0,0.00010999,2]
[333301951,1722045055935,-500.0,0.00010999,2]
[333301952,1722045055945,-500.0,0.00010999,2]
[333301953,1722045055954,-500.0,0.00010999,2]
[333301954,1722045055964,-500.0,0.00010999,2]
[333301955,1722045055973,-500.0,0.00010999,2]
[333301956,1722045055982,-88.54301561,0.00010999,2]
[333301957,1722045055994,-498.97698439,0.00010999,2]
[333301958,1722045056003,-96.4786342,0.00010999,2]
[333301959,1722045056017,-403.5213658,0.00010999,2]
[333301960,1722045056027,-619.91471764,0.00010999,2]
[333301961,1722045056036,-500.0,0.00010999,2]
[333301962,1722045056046,-554.13832631,0.00010999,2]
[333301963,1722045056055,-500.0,0.00010999,2]
[333301964,1722045056065,-500.0,0.00010999,2]
[333301965,1722045056075,-611.72604704,0.00010999,2]
[333301966,1722045056084,-500.0,0.00010999,2]
[333301967,1722045056094,-528.25580803,0.00010999,2]
[333301968,1722045056104,-264.14881776,0.00010999,2]
[333301969,1722045056113,-500.0,0.00010999,2]
[333301970,1722045056123,-500.0,0.00010999,2]
[333301971,1722045056132,-500.0,0.00010999,2]
[333301972,1722045056141,-500.0,0.00010999,2]
[333301973,1722045056150,-500.0,0.00010999,2]
[333301974,1722045056159,-514.4732076,0.00010999,2]
[333301975,1722045056168,-500.0,0.00010999,2]
[333301976,1722045056177,-500.0,0.00010999,2]
[333301977,1722045056186,-616.22028238,0.00010999,2]
[333301978,1722045056195,-500.0,0.00010999,2]
[333301979,1722045056206,-500.0,0.00010999,2]
[333301980,1722045056215,-561.24865249,0.00010999,2]
[333301981,1722045056224,-500.0,0.00010999,2]
[333301982,1722045056233,-500.0,0.00010999,2]
[333301983,1722045056242,-520.70808429,0.00010999,2]
[333301984,1722045056251,-500.0,0.00010999,2]
[333301985,1722045056261,-500.0,0.00010999,2]
[333301986,1722045056270,-548.04057569,0.00010999,2]
[333301987,1722045056280,-500.0,0.00010999,2]
[333301988,1722045056289,-500.0,0.00010999,2]
[333301989,1722045056298,-524.33428562,0.00010999,2]
[333301990,1722045056307,-500.0,0.00010999,2]
[333301991,1722045056316,-500.0,0.00010999,2]
[333301992,1722045056325,-642.09,0.00010999,2]
[333301993,1722045056334,-177.04341343,0.00010999,2]
[333301994,1722045056343,-500.0,0.00010999,2]
[333301995,1722045056353,-500.0,0.00010999,2]
[333301996,1722045056362,-500.0,0.00010999,2]
[333301997,1722045056372,-500.0,0.00010999,2]
[333301998,1722045056381,-500.0,0.00010999,2]
[333301999,1722045056390,-555.69305609,0.00010999,2]
[333302000,1722045056400,-500.0,0.00010999,2]
[333302001,1722045056408,-500.0,0.00010999,2]
[333302002,1722045056417,-507.6797139,0.00010999,2]
[333302003,1722045056427,-500.0,0.00010999,2]
[333302004,1722045056436,-500.0,0.00010999,2]
[333302005,1722045056445,-512.01812841,0.00010999,2]
[333302006,1722045056454,-500.0,0.00010999,2]
[333302007,1722045056463,-500.0,0.00010999,2]
[333302008,1722045056472,-500.0,0.00010999,2]
[333302009,1722045056482,-553.38459676,0.00010999,2]
[333302010,1722045056492,-500.0,0.00010999,2]
[333302011,1722045056501,-500.0,0.00010999,2]
[333302012,1722045056510,-528.41965593,0.00010999,2]
[333302013,1722045056519,-500.0,0.00010999,2]
[333302014,1722045056528,-500.0,0.00010999,2]
[333302015,1722045056537,-500.0,0.00010999,2]
[333302016,1722045056547,-500.0,0.00010999,2]
[333302017,1722045056555,-500.0,0.00010999,2]
[333302018,1722045056566,-547.49013421,0.00010999,2]
[333302019,1722045056576,-195.41549714,0.00010999,2]
[333302020,1722045056586,-500.0,0.00010999,2]
[333302021,1722045056596,-500.0,0.00010999,2]
[333302022,1722045056606,-596.24346857,0.00010999,2]
[333302023,1722045056616,-376.83471538,0.00010999,2]
[333302024,1722045056627,-516.36373474,0.00010999,2]
[333302025,1722045056637,-500.0,0.00010999,2]
[333302026,1722045056647,-500.0,0.00010999,2]
[333302027,1722045056657,-540.66708266,0.00010999,2]
[333302028,1722045056667,-500.0,0.00010999,2]
[333302029,1722045056677,-313.65447063,0.00010999,2]
[333302030,1722045056686,-500.0,0.00010999,2]
[333302031,1722045056695,-500.0,0.00010999,2]
[333302032,1722045056704,-597.04702048,0.00010999,2]
[333302033,1722045056714,-500.0,0.00010999,2]
[333302034,1722045056723,-500.0,0.00010999,2]
[333302035,1722045056732,-500.0,0.00010999,2]
[333302036,1722045056742,-500.0,0.00010999,2]
[333302037,1722045056751,-500.0,0.00010999,2]
[333302038,1722045056761,-500.0,0.00010999,2]
[333302039,1722045056770,-500.0,0.00010999,2]
[333302040,1722045056780,-500.0,0.00010999,2]
[333302041,1722045056790,-378.33,0.00010999,2]
[333302042,1722045056801,-500.0,0.00010999,2]
[333302043,1722045056810,-231.80095508,0.00010999,2]
[333302044,1722045056819,-510.10565781,0.00010999,2]
[333302045,1722045056828,-560.51170632,0.00010999,2]
[333302046,1722045056837,-500.0,0.00010999,2]
[333302047,1722045056850,-514.36833272,0.00010999,2]
[333302048,1722045056860,-500.0,0.00010999,2]
[333302049,1722045056870,-535.58632234,0.00010999,2]
[333302050,1722045056879,-500.0,0.00010999,2]
[333302051,1722045056890,-466.84533261,0.00010999,2]
[333302052,1722045056900,-500.0,0.00010999,2]
[333302053,1722045056910,-523.48964725,0.00010999,2]
[333302054,1722045056920,-219.51479593,0.00010999,2]
[333302055,1722045056930,-500.0,0.00010999,2]
[333302056,1722045056940,-500.0,0.00010999,2]
[333302057,1722045056950,-500.0,0.00010999,2]
[333302058,1722045056961,-529.37539678,0.00010999,2]
[333302059,1722045056971,-500.0,0.00010999,2]
[333302060,1722045056980,-500.0,0.00010999,2]
[333302061,1722045056992,-235.4463698,0.00010999,2]
[333302062,1722045057001,-617.4450563,0.00010999,2]
[333302063,1722045057010,-504.46813154,0.00010999,2]
[333302064,1722045057020,-500.0,0.00010999,2]
[333302065,1722045057028,-500.58356846,0.00010999,2]
[333302066,1722045057038,-500.0,0.00010999,2]
[333302067,1722045057047,-531.94670158,0.00010999,2]
[333302068,1722045057056,-500.0,0.00010999,2]
[333302069,1722045057065,-500.0,0.00010999,2]
[333302070,1722045057074,-155.37296507,0.00010999,2]
[333302071,1722045057085,-610.53437923,0.00010999,2]
[333302072,1722045057095,-500.0,0.00010999,2]
[333302073,1722045057104,-529.27622845,0.00010999,2]
[333302074,1722045057113,-500.0,0.00010999,2]
[333302075,1722045057123,-532.93988679,0.00010999,2]
[333302076,1722045057133,-500.0,0.00010999,2]
[333302077,1722045057142,-327.75553653,0.00010999,2]
[333302078,1722045057152,-500.0,0.00010999,2]
[333302079,1722045057163,-608.74330038,0.00010999,2]
[333302080,1722045057172,-500.0,0.00010999,2]
[333302081,1722045057182,-540.14300187,0.00010999,2]
[333302082,1722045057192,-500.0,0.00010999,2]
[333302083,1722045057203,-527.10451639,0.00010999,2]
[333302084,1722045057212,-500.0,0.00010999,2]
[333302085,1722045057222,-539.69044367,0.00010999,2]
[333302086,1722045057231,-500.0,0.00010999,2]
[333302087,1722045057242,-430.87395323,0.00010999,2]
[333302088,1722045057251,-500.0,0.00010999,2]
[333302089,1722045057260,-500.0,0.00010999,2]
[333302090,1722045057269,-512.46098931,0.00010999,2]
[333302091,1722045057279,-500.0,0.00010999,2]